bitfinex/quotes_SOLUSD_20240827
["timestamp","ask_amount","ask_price","bid_price","bid_amount"]
[1724797261323,51.61844314,147.5,147.37,51.61844314]
[1724797261502,51.61844314,147.5,147.35,50.0]
[1724797261704,51.61844314,147.5,147.36,45.25098]
[1724797261906,51.61844314,147.47,147.36,0.25098]
[1724797262308,51.61844314,147.47,147.31,126.21284314]
[1724797262509,51.61844314,147.47,147.31,74.5944]
[1724797262931,51.61844314,147.44,147.31,24.5944]
[1724797263302,51.61844314,147.47,147.33,50.0]
[1724797263508,51.61844314,147.5,147.33,101.61844314]
[1724797263704,51.61844314,147.47,147.33,51.61844314]
[1724797264304,51.61844314,147.47,147.26,6.816]
[1724797264305,51.61844314,147.44,147.3,51.61844314]
[1724797264512,51.61844314,147.44,147.25,35.44394622]
[1724797264513,51.61844314,147.44,147.27,51.61844314]
[1724797265129,51.61844314,147.44,147.28,50.0]
[1724797265345,51.61844314,147.44,147.3,51.61844314]
[1724797265623,51.61844314,147.44,147.27,51.61844314]
[1724797265835,51.61844314,147.44,147.29,50.0]
[1724797266001,51.61844314,147.44,147.3,51.61844314]
[1724797266732,51.61844314,147.47,147.31,50.0]
[1724797266952,0.8225678,147.55,147.36,51.61844314]
[1724797267243,51.61844314,147.53,147.39,50.0]
[1724797267543,51.61844314,147.53,147.4,45.25098]
[1724797267748,51.61844314,147.53,147.41,50.0]
[1724797268035,51.61844314,147.52,147.42,0.12549]
[1724797268238,51.61844314,147.52,147.4,54.22859]
[1724797268412,51.61844314,147.52,147.41,0.12549]
[1724797268840,51.61844314,147.46,147.33,8.8545]
[1724797269643,51.61844314,147.49,147.33,8.8545]
[1724797269644,51.61844314,147.49,147.33,58.8545]
[1724797269830,51.61844314,147.49,147.33,8.8545]
[1724797270032,51.61844314,147.49,147.33,58.8545]
[1724797270232,51.61844314,147.49,147.33,8.8545]
[1724797270625,51.61844314,147.44,147.33,8.8545]
[1724797271031,51.61844314,147.47,147.33,8.8545]
[1724797271540,51.61844314,147.41,147.26,58.8545]
[1724797271843,51.61844314,147.35,147.24,7.09736426]
[1724797272147,65.0,147.4,147.19,8.8545]
[1724797272148,51.61844314,147.32,147.19,8.8545]
[1724797273314,51.61844314,147.35,147.19,8.8545]
[1724797273517,51.61844314,147.38,147.22,51.61844314]
[1724797273735,51.61844314,147.38,147.21,50.0]
[1724797273736,20.0,147.41,147.25,51.61844314]
[1724797273955,22.9095,147.44,147.25,51.61844314]
[1724797273956,51.61844314,147.39,147.25,51.61844314]
[1724797274139,51.61844314,147.36,147.21,51.61844314]
[1724797274509,51.61844314,147.42,147.19,8.8545]
[1724797274510,51.61844314,147.33,147.19,8.8545]
[1724797274736,51.61844314,147.33,147.2,50.0]
[1724797274940,51.61844314,147.33,147.19,8.8545]
[1724797276338,51.61844314,147.39,147.24,51.61844314]
[1724797276516,51.61844314,147.39,147.3,0.970462]
[1724797277117,51.61844314,147.45,147.3,0.970462]
[1724797277316,51.61844314,147.45,147.31,50.25098]
[1724797277518,21.9529,147.53,147.36,51.61844314]
[1724797277756,73.57134314,147.53,147.37,45.25098]
[1724797278038,51.61844314,147.53,147.39,51.61844314]
[1724797278247,51.61844314,147.53,147.4,45.12549]
[1724797278452,0.8225678,147.55,147.42,51.61844314]
[1724797278615,0.8225678,147.55,147.43,45.12549]
[1724797278815,0.8225678,147.55,147.4,95.12549]
[1724797278816,51.61844314,147.53,147.4,0.12549]
[1724797279057,0.8225678,147.55,147.4,0.12549]
[1724797279058,51.61844314,147.5,147.4,0.12549]
[1724797279340,51.61844314,147.53,147.35,51.61844314]
[1724797279640,51.61844314,147.5,147.36,45.25098]
[1724797279937,51.61844314,147.47,147.36,0.12549]
[1724797280144,51.61844314,147.47,147.31,50.0]
[1724797280315,51.61844314,147.49,147.34,0.12549]
[1724797281045,51.61844314,147.49,147.33,9.6477]
[1724797281046,51.61844314,147.45,147.33,9.6477]
[1724797281620,20.12549,147.48,147.33,9.6477]
[1724797281621,51.61844314,147.42,147.33,9.6477]
[1724797281943,20.0,147.44,147.33,9.6477]
[1724797282157,51.61844314,147.39,147.3,0.970462]
[1724797283225,51.61844314,147.42,147.3,0.970462]
[1724797283749,51.61844314,147.45,147.31,0.25098]
[1724797283949,20.0,147.44,147.31,0.25098]
[1724797284244,20.0,147.44,147.3,0.970462]
[1724797284245,51.61844314,147.42,147.3,0.970462]
[1724797284452,20.0,147.41,147.3,0.970462]
[1724797285243,51.61844314,147.42,147.3,0.970462]
[1724797285650,51.61844314,147.42,147.31,0.25098]
[1724797285948,51.61844314,147.39,147.3,0.970462]
[1724797286134,51.61844314,147.39,147.31,0.12549]
[1724797286332,51.61844314,147.49,147.31,0.12549]
[1724797286333,51.61844314,147.42,147.31,0.12549]
[1724797286641,51.61844314,147.42,147.3,0.970462]
[1724797286837,51.61844314,147.49,147.31,51.86942314]
[1724797287149,51.61844314,147.49,147.31,0.25098]
[1724797287150,51.61844314,147.45,147.31,0.25098]
[1724797287332,51.61844314,147.49,147.32,45.0]
[1724797287536,51.61844314,147.49,147.33,0.25098]
[1724797287861,51.61844314,147.52,147.35,50.0]
[1724797288161,0.8225678,147.55,147.39,50.0]
[1724797288357,0.8225678,147.55,147.37,51.61844314]
[1724797288358,0.8225678,147.55,147.4,45.25098]
[1724797288527,0.8225678,147.55,147.41,9.405]
[1724797288730,0.8225678,147.55,147.42,45.0]
[1724797288731,51.61844314,147.53,147.42,45.0]
[1724797289054,51.61844314,147.53,147.41,9.405]
[1724797289055,51.61844314,147.5,147.41,9.405]
[1724797289638,51.61844314,147.53,147.41,9.405]
[1724797289955,51.61844314,147.53,147.42,0.12549]
[1724797290162,0.8225678,147.55,147.42,45.25098]
[1724797290370,0.8225678,147.55,147.44,51.61844314]
[1724797290532,0.8225678,147.55,147.45,45.0]
[1724797290727,0.8225678,147.55,147.42,45.25098]
[1724797291855,0.8225678,147.55,147.44,51.61844314]
[1724797292056,0.8225678,147.55,147.45,45.25098]
[1724797292359,0.8225678,147.55,147.45,95.25098]
[1724797292537,51.61844314,147.48,147.36,50.0]
[1724797292746,51.61844314,147.48,147.34,9.1336]
[1724797293432,51.61844314,147.45,147.34,9.1336]
[1724797294072,51.61844314,147.39,147.29,23.8759]
[1724797294847,51.61844314,147.42,147.29,23.8759]
[1724797295449,51.61844314,147.42,147.29,75.49434314]
[1724797295757,51.61844314,147.46,147.32,51.61844314]
[1724797295937,51.61844314,147.43,147.29,23.8759]
[1724797296338,7.96349968,147.51,147.34,51.61844314]
[1724797296664,51.61844314,147.52,147.37,50.0]
[1724797297157,51.61844314,147.49,147.36,50.0]
[1724797297361,51.61844314,147.49,147.38,45.0]
[1724797297548,51.61844314,147.49,147.39,0.25098]
[1724797298149,51.61844314,147.46,147.32,50.0]
[1724797298335,51.61844314,147.46,147.31,51.61844314]
[1724797298533,51.61844314,147.46,147.3,50.0]
[1724797298748,51.61844314,147.46,147.31,50.0]
[1724797298969,51.61844314,147.46,147.32,51.61844314]
[1724797299346,51.61844314,147.49,147.29,90.8489]
[1724797299347,51.61844314,147.43,147.29,90.8489]
[1724797299541,51.61844314,147.46,147.31,101.61844314]
[1724797299749,51.61844314,147.46,147.31,108.40674314]
[1724797299934,0.8225678,147.55,147.37,101.61844314]
[1724797300137,0.8225678,147.55,147.4,50.0]
[1724797300353,52.44101094,147.55,147.4,101.61844314]
[1724797300548,51.61844314,147.54,147.4,51.61844314]
[1724797300756,0.8225678,147.55,147.41,115.25098]
[1724797300967,0.8225678,147.55,147.41,132.21018]
[1724797301144,52.44101094,147.55,147.41,45.25098]
[1724797301744,52.44101094,147.55,147.41,95.25098]
[1724797301952,52.44101094,147.55,147.41,45.25098]
[1724797302458,51.61844314,147.52,147.41,45.0]
[1724797302641,51.61844314,147.49,147.38,9.1336]
[1724797303242,51.61844314,147.52,147.38,9.1336]
[1724797303645,51.61844314,147.49,147.38,9.1336]
[1724797304159,51.61844314,147.46,147.31,58.4346]
[1724797304364,51.61844314,147.49,147.32,51.61844314]
[1724797304545,51.61844314,147.49,147.31,8.4346]
[1724797304741,51.61844314,147.46,147.31,8.4346]
[1724797305970,51.61844314,147.43,147.31,8.4346]
[1724797306169,51.61844314,147.49,147.32,101.61844314]
[1724797306367,20.0,147.48,147.32,101.61844314]
[1724797306543,20.0,147.48,147.32,51.61844314]
[1724797306970,51.61844314,147.49,147.35,51.61844314]
[1724797307170,101.61844314,147.63,147.39,50.0]
[1724797307171,0.8225678,147.55,147.39,50.0]
[1724797307368,0.8225678,147.55,147.38,51.61844314]
[1724797307558,50.65191814,147.53,147.39,45.25098]
[1724797307892,50.65191814,147.53,147.39,95.25098]
[1724797308271,50.65191814,147.53,147.41,50.0]
[1724797308444,0.8225678,147.55,147.43,50.0]
[1724797308750,0.8225678,147.55,147.44,45.25098]
[1724797308957,0.8225678,147.55,147.45,0.12549]
[1724797309375,0.8225678,147.55,147.45,8.83619]
[1724797309559,0.8225678,147.55,147.46,45.12549]
[1724797309747,0.8225678,147.55,147.47,0.12549]
[1724797310462,51.44101094,147.56,147.47,0.12549]
[1724797310769,51.44101094,147.56,147.46,45.12549]
[1724797310966,51.44101094,147.56,147.47,0.12549]
[1724797312146,51.44101094,147.56,147.46,45.12549]
[1724797313181,51.61844314,147.53,147.45,8.7107]
[1724797313645,51.61844314,147.56,147.45,8.7107]
[1724797314795,51.61844314,147.56,147.46,45.25098]
[1724797315670,51.61844314,147.56,147.46,45.12549]
[1724797316179,51.61844314,147.56,147.45,8.7107]
[1724797316380,51.61844314,147.59,147.45,8.7107]
[1724797316763,51.61844314,147.56,147.45,8.7107]
[1724797317354,51.61844314,147.56,147.46,0.12549]
[1724797317551,51.61844314,147.56,147.46,45.25098]
[1724797317867,51.61844314,147.59,147.46,45.25098]
[1724797318075,51.61844314,147.56,147.46,45.25098]
[1724797318880,51.61844314,147.56,147.46,0.12549]
[1724797319088,51.61844314,147.56,147.46,200.0]
[1724797319494,0.12549,147.55,147.46,200.0]
[1724797319986,51.61844314,147.53,147.46,200.0]
[1724797320165,51.61844314,147.56,147.46,200.0]
[1724797320793,51.61844314,147.53,147.46,200.0]
[1724797320961,7.52115713,147.62,147.46,200.0]
[1724797320962,51.61844314,147.56,147.46,200.0]
[1724797321164,51.61844314,147.56,147.47,45.12549]
[1724797321532,51.61844314,147.65,147.49,51.61844314]
[1724797321798,51.61844314,147.68,147.52,51.61844314]
[1724797321965,51.61844314,147.71,147.55,51.61844314]
[1724797322165,51.61844314,147.71,147.56,45.25098]
[1724797322488,51.61844314,147.71,147.58,51.61844314]
[1724797322791,51.61844314,147.71,147.59,53.74748]
[1724797322991,51.61844314,147.71,147.59,8.4965]
[1724797323674,51.61844314,147.68,147.59,8.4965]
[1724797324298,51.61844314,147.62,147.52,8.4965]
[1724797324501,51.61844314,147.65,147.52,8.4965]
[1724797324970,51.61844314,147.62,147.52,8.4965]
[1724797325590,51.61844314,147.65,147.52,8.4965]
[1724797326004,51.61844314,147.62,147.52,8.4965]
[1724797326209,0.8225678,147.69,147.46,207.6979]
[1724797326210,51.61844314,147.59,147.46,207.6979]
[1724797326371,51.61844314,147.56,147.46,207.6979]
[1724797326695,20.0,147.61,147.46,207.6979]
[1724797326696,51.61844314,147.53,147.46,207.6979]
[1724797327693,20.0,147.61,147.46,207.6979]
[1724797327694,51.61844314,147.55,147.46,207.6979]
[1724797328193,51.61844314,147.52,147.46,200.0]
[1724797328398,65.0,147.54,147.46,200.0]
[1724797328399,51.61844314,147.49,147.46,200.0]
[1724797330271,51.61844314,147.52,147.46,200.0]
[1724797330479,45.12549,147.51,147.46,200.0]
[1724797330809,51.61844314,147.49,147.46,200.0]
[1724797331008,45.12549,147.48,147.46,200.0]
[1724797331376,45.12549,147.48,147.46,24.93020392]
[1724797331585,20.12549,147.47,147.46,24.93020392]
[1724797331889,65.25098,147.47,147.32,7.6379]
[1724797332084,51.61844314,147.45,147.32,7.6379]
[1724797332285,51.61844314,147.49,147.32,7.6379]
[1724797332286,51.61844314,147.49,147.32,59.25634314]
[1724797332601,51.61844314,147.49,147.33,50.0]
[1724797332782,51.61844314,147.49,147.35,51.61844314]
[1724797333095,51.61844314,147.49,147.36,45.25098]
[1724797333406,51.61844314,147.49,147.35,51.61844314]
[1724797333407,51.61844314,147.49,147.32,59.25634314]
[1724797333701,51.61844314,147.49,147.32,7.6379]
[1724797333702,45.0,147.48,147.32,7.6379]
[1724797333899,51.61844314,147.42,147.32,7.6379]
[1724797334408,0.25098,147.41,147.32,7.6379]
[1724797334703,0.12549,147.41,147.32,7.6379]
[1724797334896,45.25098,147.41,147.32,7.6379]
[1724797335402,51.61844314,147.39,147.26,7.6379]
[1724797335597,51.61844314,147.36,147.26,7.6379]
[1724797336398,51.61844314,147.42,147.26,59.25634314]
[1724797336607,65.25098,147.41,147.26,59.25634314]
[1724797336777,45.25098,147.41,147.26,59.25634314]
[1724797336990,51.61844314,147.45,147.29,51.61844314]
[1724797337175,51.61844314,147.49,147.29,51.61844314]
[1724797337383,51.61844314,147.49,147.3,20.0]
[1724797337605,51.61844314,147.35,147.26,7.6379]
[1724797337948,51.61844314,147.32,147.26,7.6379]
[1724797338116,51.61844314,147.35,147.26,7.6379]
[1724797338403,0.12549,147.34,147.26,7.6379]
[1724797338579,51.61844314,147.32,147.26,7.6379]
[1724797338777,0.25098,147.34,147.26,7.6379]
[1724797338981,45.25098,147.34,147.26,7.6379]
[1724797340000,45.25098,147.34,147.19,19.8289]
[1724797340001,18.01955748,147.48,147.2,108.41184314]
[1724797340212,51.61844314,147.44,147.29,51.61844314]
[1724797341111,51.61844314,147.44,147.3,8.0822]
[1724797341312,51.61844314,147.41,147.3,8.0822]
[1724797341605,51.61844314,147.35,147.23,8.0822]
[1724797342011,51.61844314,147.32,147.23,8.0822]
[1724797342397,51.61844314,147.38,147.23,8.0822]
[1724797342819,45.0,147.37,147.23,8.0822]
[1724797343294,45.0,147.37,147.24,0.25098]
[1724797343495,51.61844314,147.35,147.24,0.12549]
[1724797343693,45.0,147.34,147.23,8.0822]
[1724797344015,51.61844314,147.35,147.23,8.0822]
[1724797344318,0.12549,147.34,147.23,8.0822]
[1724797344498,51.61844314,147.35,147.23,8.0822]
[1724797344812,51.61844314,147.42,147.23,8.0822]
[1724797344813,51.61844314,147.32,147.23,8.0822]
[1724797345022,45.25098,147.34,147.19,19.8289]
[1724797345023,51.61844314,147.29,147.19,19.8289]
[1724797345225,51.61844314,147.29,147.17,7.6648]
[1724797345226,51.61844314,147.23,147.17,7.6648]
[1724797345515,51.61844314,147.2,147.11,7.6648]
[1724797346015,0.12549,147.22,147.11,7.6648]
[1724797346203,51.61844314,147.23,147.11,7.6648]
[1724797346404,0.12549,147.22,147.11,7.6648]
[1724797346596,51.61844314,147.23,147.11,7.6648]
[1724797347119,45.25098,147.22,147.11,7.6648]
[1724797347412,51.61844314,147.2,147.11,7.6648]
[1724797347613,51.61844314,147.26,147.11,7.6648]
[1724797348194,51.61844314,147.26,147.12,51.61844314]
[1724797348391,51.61844314,147.29,147.15,51.61844314]
[1724797348598,51.61844314,147.29,147.16,0.12549]
[1724797348818,51.61844314,147.2,147.11,7.6648]
[1724797349035,51.61844314,147.17,147.08,7.5432]
[1724797349310,51.61844314,147.23,147.08,7.5432]
[1724797349520,51.61844314,147.26,147.1,51.61844314]
[1724797349892,45.12549,147.25,147.08,7.5432]
[1724797350495,0.12549,147.25,147.08,7.5432]
[1724797350690,0.12549,147.25,147.11,51.61844314]
[1724797350917,45.25098,147.25,147.08,7.5432]
[1724797351118,51.61844314,147.23,147.08,7.5432]
[1724797351416,51.61844314,147.2,147.08,7.5432]
[1724797351718,19.0203,147.36,147.08,57.5432]
[1724797351917,51.61844314,147.29,147.13,51.61844314]
[1724797352118,8.30837935,147.34,147.13,51.61844314]
[1724797352119,51.61844314,147.32,147.13,51.61844314]
[1724797352417,51.61844314,147.32,147.16,51.61844314]
[1724797352605,51.61844314,147.29,147.13,51.61844314]
[1724797353000,51.61844314,147.23,147.08,7.5432]
[1724797353403,51.61844314,147.29,147.12,51.61844314]
[1724797353619,51.61844314,147.35,147.15,51.61844314]
[1724797353620,51.61844314,147.32,147.15,51.61844314]
[1724797353822,27.220081,147.34,147.18,51.61844314]
[1724797354113,51.61844314,147.38,147.21,51.61844314]
[1724797354321,51.61844314,147.35,147.18,78.42514314]
[1724797354523,51.61844314,147.32,147.18,78.42514314]
[1724797354710,51.61844314,147.32,147.19,45.12549]
[1724797354907,51.61844314,147.32,147.2,0.12549]
[1724797355104,51.61844314,147.35,147.19,45.12549]
[1724797355299,51.61844314,147.29,147.18,26.8067]
[1724797355711,59.92004407,147.35,147.11,51.61844314]
[1724797355712,51.61844314,147.26,147.12,8.9913]
[1724797355901,59.92004407,147.35,147.17,51.61844314]
[1724797356119,59.92004407,147.35,147.14,51.61844314]
[1724797356120,51.61844314,147.31,147.14,51.61844314]
[1724797356638,20.0,147.3,147.14,51.61844314]
[1724797356826,51.61844314,147.28,147.12,8.9913]
[1724797357015,45.12549,147.27,147.13,0.25098]
[1724797357321,51.61844314,147.28,147.13,0.25098]
[1724797357525,59.92004407,147.35,147.17,51.61844314]
[1724797357708,59.92004407,147.35,147.18,0.25098]
[1724797357913,51.61844314,147.32,147.18,0.25098]
[1724797358730,51.61844314,147.35,147.19,0.12549]
[1724797358930,51.61844314,147.35,147.19,45.25098]
[1724797360116,51.61844314,147.35,147.19,95.25098]
[1724797360720,51.61844314,147.35,147.19,45.25098]
[1724797361200,20.0,147.34,147.18,51.61844314]
[1724797361532,51.61844314,147.32,147.18,51.61844314]
[1724797361716,51.61844314,147.38,147.24,51.61844314]
[1724797362309,51.61844314,147.42,147.25,20.3616]
[1724797362514,51.61844314,147.42,147.26,0.25098]
[1724797362913,51.61844314,147.42,147.27,51.61844314]
[1724797363129,51.61844314,147.49,147.3,51.61844314]
[1724797363303,51.61844314,147.49,147.29,50.0]
[1724797363304,78.81171314,147.49,147.33,51.61844314]
[1724797363504,51.61844314,147.49,147.35,8.8088]
[1724797363712,51.61844314,147.49,147.36,45.12549]
[1724797363910,51.61844314,147.49,147.35,8.8088]
[1724797364334,51.61844314,147.49,147.36,45.12549]
[1724797364936,51.61844314,147.49,147.35,8.8088]
[1724797365227,51.61844314,147.45,147.35,8.8088]
[1724797365829,51.61844314,147.49,147.28,9.0514]
[1724797365830,51.61844314,147.42,147.28,9.0514]
[1724797366910,51.61844314,147.42,147.29,0.12549]
[1724797367112,51.61844314,147.42,147.29,45.25098]
[1724797367533,51.61844314,147.39,147.28,9.0514]
[1724797368043,51.61844314,147.42,147.29,51.61844314]
[1724797368209,51.61844314,147.45,147.29,51.61844314]
[1724797368420,51.61844314,147.39,147.28,9.0514]
[1724797368737,51.61844314,147.42,147.28,9.0514]
[1724797369233,51.61844314,147.39,147.28,9.0514]
[1724797369532,51.61844314,147.36,147.28,9.0514]
[1724797370309,51.61844314,147.39,147.28,9.0514]
[1724797370532,0.12549,147.4,147.28,9.0514]
[1724797370726,51.61844314,147.37,147.28,9.0514]
[1724797370914,0.12549,147.36,147.28,9.0514]
[1724797371111,51.61844314,147.34,147.28,9.0514]
[1724797371431,0.12549,147.33,147.22,8.6147]
[1724797371834,0.25098,147.33,147.22,8.6147]
[1724797372043,65.25098,147.33,147.22,8.6147]
[1724797372334,65.0,147.33,147.22,8.6147]
[1724797372535,20.0,147.33,147.22,8.6147]
[1724797372740,51.61844314,147.35,147.22,8.6147]
[1724797372915,51.61844314,147.32,147.22,8.6147]
[1724797373740,45.12549,147.34,147.22,8.6147]
[1724797373913,51.61844314,147.35,147.22,8.6147]
[1724797374512,0.12549,147.34,147.22,8.6147]
[1724797375034,51.61844314,147.3,147.22,8.6147]
[1724797376517,51.61844314,147.33,147.22,8.6147]
[1724797376730,0.12549,147.32,147.22,8.6147]
[1724797377119,51.61844314,147.33,147.22,8.6147]
[1724797378831,45.12549,147.32,147.22,8.6147]
[1724797379647,51.61844314,147.3,147.22,8.6147]
[1724797380022,45.12549,147.32,147.22,8.6147]
[1724797380441,51.61844314,147.33,147.22,8.6147]
[1724797380621,45.0,147.32,147.22,8.6147]
[1724797381319,51.61844314,147.36,147.22,8.6147]
[1724797381521,27.212649,147.4,147.25,51.61844314]
[1724797381725,51.61844314,147.42,147.28,51.61844314]
[1724797381940,51.61844314,147.42,147.29,0.12549]
[1724797382143,51.61844314,147.42,147.29,45.12549]
[1724797382337,51.61844314,147.45,147.29,45.12549]
[1724797382541,51.61844314,147.45,147.3,0.12549]
[1724797382722,51.61844314,147.42,147.3,0.12549]
[1724797382922,51.61844314,147.42,147.29,45.12549]
[1724797383345,51.61844314,147.39,147.22,8.6147]
[1724797383644,51.61844314,147.42,147.23,45.0]
[1724797383645,51.61844314,147.36,147.23,45.0]
[1724797383827,51.61844314,147.36,147.22,8.6147]
[1724797384025,51.61844314,147.33,147.22,8.6147]
[1724797384418,45.25098,147.32,147.22,8.6147]
[1724797384721,51.61844314,147.33,147.22,8.6147]
[1724797384921,51.61844314,147.3,147.22,8.6147]
[1724797385439,0.12549,147.29,147.22,8.6147]
[1724797385632,51.61844314,147.3,147.22,8.6147]
[1724797385832,45.0,147.32,147.22,8.6147]
[1724797386242,51.74393314,147.33,147.22,8.6147]
[1724797386442,51.61844314,147.36,147.22,60.23314314]
[1724797386748,51.61844314,147.33,147.22,8.6147]
[1724797387730,51.61844314,147.36,147.23,45.12549]
[1724797387930,45.0,147.35,147.23,0.12549]
[1724797388432,0.12549,147.34,147.23,0.12549]
[1724797388621,51.61844314,147.33,147.22,8.6147]
[1724797388825,51.61844314,147.3,147.22,8.6147]
[1724797389645,96.61844314,147.35,147.22,8.6147]
[1724797389839,0.12549,147.34,147.22,8.6147]
[1724797390324,51.61844314,147.35,147.22,60.23314314]
[1724797390822,51.61844314,147.38,147.23,45.12549]
[1724797391031,51.61844314,147.32,147.22,8.6147]
[1724797391630,51.61844314,147.35,147.22,8.6147]
[1724797391833,51.61844314,147.35,147.23,45.41816294]
[1724797392028,51.61844314,147.35,147.22,8.6147]
[1724797392251,0.25098,147.34,147.22,8.6147]
[1724797392545,51.61844314,147.32,147.22,8.6147]
[1724797392941,51.61844314,147.29,147.22,8.6147]
[1724797393135,0.12549,147.28,147.22,8.6147]
[1724797393437,0.12549,147.28,147.18,22.2355]
[1724797393632,51.61844314,147.26,147.18,22.2355]
[1724797394652,51.61844314,147.23,147.16,9.0305]
[1724797394832,0.12549,147.22,147.11,21.4796]
[1724797395236,45.0,147.22,147.11,21.4796]
[1724797395754,51.61844314,147.2,147.11,21.4796]
[1724797396142,51.61844314,147.23,147.11,21.4796]
[1724797396456,20.0,147.25,147.11,21.4796]
[1724797396631,51.61844314,147.23,147.11,21.4796]
[1724797396831,51.61844314,147.28,147.12,0.12549]
[1724797397055,51.61844314,147.25,147.12,45.25098]
[1724797397355,45.12549,147.24,147.12,45.12549]
[1724797398037,51.61844314,147.22,147.11,21.4796]
[1724797398350,51.61844314,147.19,147.11,21.4796]
[1724797398741,1.43569229,147.34,147.11,21.4796]
[1724797399046,51.61844314,147.25,147.11,21.4796]
[1724797399245,51.61844314,147.22,147.11,21.4796]
[1724797399755,51.61844314,147.22,147.12,45.12549]
[1724797400164,51.61844314,147.25,147.12,45.12549]
[1724797400335,51.61844314,147.25,147.12,0.12549]
[1724797400531,51.61844314,147.25,147.11,21.4796]
[1724797400532,51.61844314,147.19,147.11,21.4796]
[1724797401244,51.61844314,147.16,147.1,9.1082]
[1724797401556,51.61844314,147.13,147.1,9.1082]
[1724797401953,51.61844314,147.13,147.04,21.4825]
[1724797401954,51.61844314,147.13,147.04,30.1498]
[1724797402144,51.61844314,147.16,147.04,30.1498]
[1724797403061,51.61844314,147.13,147.04,30.1498]
[1724797403836,51.61844314,147.1,147.04,8.6673]
[1724797404034,51.61844314,147.07,146.97,32.1972]
[1724797404458,0.12549,147.06,146.97,32.1972]
[1724797404960,51.61844314,147.07,146.97,32.1972]
[1724797405484,0.12549,147.06,146.97,32.1972]
[1724797405665,51.61844314,147.04,146.97,32.1972]
[1724797406252,51.61844314,147.07,146.97,32.1972]
[1724797406458,45.25098,147.06,146.97,32.1972]
[1724797406840,51.61844314,147.02,146.92,8.9055]
[1724797407264,51.61844314,146.96,146.92,8.9055]
[1724797407554,51.61844314,146.99,146.92,8.9055]
[1724797407761,51.61844314,147.05,146.92,8.9055]
[1724797407936,51.61844314,147.08,146.92,60.52394314]
[1724797408137,51.61844314,147.05,146.92,8.9055]
[1724797408752,71.61844314,147.07,146.92,60.52394314]
[1724797408956,0.12549,147.06,146.92,8.9055]
[1724797409261,45.12549,147.06,146.92,8.9055]
[1724797409443,45.25098,147.06,146.92,60.52394314]
[1724797409647,45.25098,147.06,146.93,45.0]
[1724797409843,51.61844314,147.1,146.95,51.61844314]
[1724797410166,51.61844314,147.07,146.94,0.12549]
[1724797410344,0.12549,147.06,146.93,45.0]
[1724797410539,51.61844314,147.04,146.92,8.9055]
[1724797410760,51.61844314,147.01,146.92,8.9055]
[1724797410962,51.61844314,146.95,146.85,8.8337]
[1724797411173,51.61844314,146.92,146.85,8.8337]
[1724797411757,51.61844314,146.89,146.71,10.01873497]
[1724797411948,51.74393314,146.93,146.77,51.61844314]
[1724797412139,51.74393314,146.93,146.72,51.61844314]
[1724797412140,45.0,146.99,146.83,51.61844314]
[1724797412343,20.0,146.98,146.83,59.11494349]
[1724797412571,20.0,146.98,146.83,51.61844314]
[1724797412997,20.0,147.0,146.83,51.61844314]
[1724797413150,20.0,147.0,146.84,0.12549]
[1724797413483,20.0,147.0,146.84,0.25098]
[1724797413769,45.12549,146.99,146.84,45.25098]
[1724797413950,51.61844314,146.95,146.82,20.9463]
[1724797414264,51.61844314,146.98,146.85,51.61844314]
[1724797414563,51.61844314,147.04,146.88,51.61844314]
[1724797415072,51.61844314,147.01,146.85,51.61844314]
[1724797415364,51.61844314,147.04,146.88,51.61844314]
[1724797415664,51.61844314,147.04,146.89,45.25098]
[1724797416169,20.0,147.03,146.89,45.25098]
[1724797416376,20.0,147.03,146.89,45.12549]
[1724797416554,51.61844314,147.01,146.85,51.61844314]
[1724797416756,51.61844314,147.01,146.86,65.25098]
[1724797417068,0.25098,147.0,146.86,65.25098]
[1724797417366,51.61844314,146.98,146.82,72.56474314]
[1724797417760,51.61844314,146.95,146.82,20.9463]
[1724797417957,51.61844314,146.98,146.82,20.9463]
[1724797418163,45.25098,146.97,146.82,20.9463]
[1724797418469,51.61844314,146.95,146.82,20.9463]
[1724797418677,51.61844314,146.92,146.82,20.9463]
[1724797419058,51.61844314,146.89,146.82,20.9463]
[1724797419366,51.61844314,146.89,146.75,21.2479]
[1724797419571,0.12549,146.88,146.75,21.2479]